bitfinex/quotes_ETHUSD_20241217
["timestamp","ask_amount","ask_price","bid_price","bid_amount"]
[1734396128561,0.8322,3967.5,3965.5,0.77601187]
[1734396128743,1.0416928,3968.0,3965.5,0.77601187]
[1734396128744,0.232885,3967.4,3965.5,0.77601187]
[1734396128906,0.232885,3967.9,3965.5,0.77601187]
[1734396129106,1.3822,3968.0,3965.5,0.7508]
[1734396129458,0.23288429,3967.9,3965.5,0.7508]
[1734396129600,0.23288429,3967.8,3965.5,0.7508]
[1734396129803,0.55,3967.6,3965.5,0.7508]
[1734396130001,0.8322,3967.4,3965.5,0.7508]
[1734396130234,0.23288429,3967.3,3965.5,0.7508]
[1734396130438,0.23288429,3967.2,3965.5,0.7508]
[1734396130645,0.23288429,3967.1,3965.5,0.7508]
[1734396130952,0.23288429,3967.0,3965.5,0.7508]
[1734396131161,0.23288429,3966.9,3965.5,0.7508]
[1734396131442,0.23288429,3966.8,3965.5,0.7508]
[1734396131640,0.23288429,3966.7,3965.5,0.7508]
[1734396131856,0.23288429,3966.6,3965.5,0.7508]
[1734396132035,0.8322,3967.4,3965.5,0.7508]
[1734396132219,0.7831002,3967.3,3965.5,0.7508]
[1734396132541,0.2331002,3967.2,3965.5,0.7508]
[1734396132750,0.2331002,3967.1,3965.5,0.7508]
[1734396132915,0.55,3967.3,3965.5,0.7508]
[1734396132916,0.8322,3966.9,3965.5,0.7508]
[1734396133115,0.2331002,3966.8,3965.5,0.7508]
[1734396133316,0.7831002,3966.7,3965.5,0.7508]
[1734396133665,0.2331002,3966.6,3965.5,0.7508]
[1734396133812,0.7831002,3966.5,3965.5,0.7508]
[1734396134012,0.55,3966.3,3963.9,0.7508]
[1734396134213,0.2331002,3966.2,3964.0,0.93038814]
[1734396134461,0.2331002,3966.1,3964.0,0.7508]
[1734396134761,0.2331002,3966.0,3964.0,0.7508]
[1734396135105,0.2331002,3965.9,3964.0,0.7508]
[1734396135241,0.2331002,3965.8,3964.0,0.7508]
[1734396135562,0.2331002,3965.7,3964.0,0.7508]
[1734396135761,0.2331002,3965.6,3964.0,0.7508]
[1734396135961,0.2330079,3965.6,3964.0,0.7508]
[1734396136182,1.0416928,3966.6,3964.1,0.85792038]
[1734396136450,0.23301084,3966.5,3964.4,0.8327]
[1734396136657,0.763,3966.8,3964.4,0.8327]
[1734396136658,0.23301084,3966.4,3964.6,0.8327]
[1734396136962,0.23301084,3966.3,3964.6,0.8327]
[1734396137164,0.23301084,3966.2,3964.7,0.857916]
[1734396137331,1.8046928,3967.2,3964.8,0.8327]
[1734396137680,3.42876129,3967.1,3965.0,0.8327]
[1734396137981,0.23305404,3967.0,3965.2,0.8327]
[1734396138119,0.23305404,3966.9,3965.3,0.02521168]
[1734396138313,0.12686303,3967.9,3965.4,0.8327]
[1734396138314,0.23305404,3966.8,3965.4,0.8327]
[1734396138528,0.23305404,3966.7,3965.5,0.8327]
[1734396138755,1.0416928,3967.6,3965.5,0.8327]
[1734396138956,0.23307869,3966.6,3965.5,0.8327]
[1734396139125,0.23307869,3966.5,3965.5,0.8327]
[1734396139455,1.56260672,3967.6,3965.5,0.8327]
[1734396139456,0.23307869,3966.4,3965.5,0.8327]
[1734396139652,0.37292591,3967.3,3965.5,0.8327]
[1734396139854,1.0416928,3967.4,3965.5,0.8327]
[1734396139855,0.60601709,3967.2,3965.5,0.8327]
[1734396140055,0.60601709,3967.1,3965.2,0.8327]
[1734396140256,0.60601709,3967.0,3965.3,0.85791186]
[1734396140556,0.23309118,3966.9,3965.3,0.8327]
[1734396140756,0.23309118,3966.8,3965.4,0.02521187]
[1734396140930,0.23309118,3966.7,3965.4,0.8327]
[1734396141130,0.37292591,3967.2,3965.4,0.8327]
[1734396141131,0.23309118,3966.6,3965.4,0.8327]
[1734396141372,0.23309118,3966.5,3965.4,0.8327]
[1734396141658,0.23309118,3966.4,3965.4,0.8327]
[1734396141820,0.23309118,3966.3,3965.4,0.8327]
[1734396142021,0.23309118,3966.2,3965.4,0.8327]
[1734396142231,1.41461871,3967.1,3965.4,0.8327]
[1734396142558,1.46858803,3967.0,3965.4,0.8327]
[1734396142780,0.60600044,3966.9,3965.4,0.8327]
[1734396143078,0.60600044,3966.8,3965.4,0.8327]
[1734396143289,0.60600044,3966.7,3965.4,0.8327]
[1734396143434,0.60600044,3966.6,3965.4,0.8327]
[1734396143635,0.60600044,3966.5,3965.4,0.8327]
[1734396143844,0.60600044,3966.4,3965.4,0.8327]
[1734396144036,0.23307453,3966.3,3965.4,0.8327]
[1734396144350,0.23307453,3966.2,3965.4,0.8327]
[1734396144551,0.23307453,3966.1,3965.5,0.38751353]
[1734396144756,0.37292591,3966.9,3965.7,0.8327]
[1734396144992,0.2331288,3966.8,3965.7,0.8327]
[1734396145279,0.2331288,3966.7,3965.9,0.8327]
[1734396145480,0.2331288,3966.6,3965.9,0.8327]
[1734396145635,0.2331288,3966.5,3965.9,0.8327]
[1734396145837,0.2331288,3966.4,3965.9,0.8327]
[1734396146070,0.2331288,3966.3,3965.9,0.8327]
[1734396146266,0.2331288,3966.2,3965.9,0.8327]
[1734396146486,0.37292591,3966.8,3965.9,0.8327]
[1734396146683,1.56260672,3967.3,3965.9,0.8327]
[1734396146684,0.6060828,3966.7,3965.9,0.8327]
[1734396146854,0.6060828,3966.6,3965.9,0.8327]
[1734396147055,0.6060828,3966.5,3965.9,0.8327]
[1734396147393,0.6060828,3966.4,3965.9,0.8327]
[1734396147685,0.6060828,3966.3,3964.9,0.8327]
[1734396147838,1.0416928,3966.6,3964.9,1.03306018]
[1734396147839,0.6060828,3966.2,3964.9,1.03306018]
[1734396148041,0.23315689,3966.1,3964.9,1.03306018]
[1734396148237,0.23315689,3966.0,3964.9,1.03306018]
[1734396148484,0.23315689,3965.9,3964.9,1.03306018]
[1734396148663,0.23315488,3965.8,3964.9,1.03306018]
[1734396148883,0.37304781,3966.4,3965.1,0.8327]
[1734396149168,0.60620141,3966.3,3965.1,0.8327]
[1734396149373,0.2331536,3966.2,3965.1,0.8327]
[1734396149539,1.0416928,3966.6,3965.1,0.8327]
[1734396149540,0.2331536,3966.1,3965.1,0.8327]
[1734396149740,0.2331536,3966.0,3965.1,0.8327]
[1734396149941,0.2331536,3965.9,3965.1,0.8327]
[1734396150152,0.2331536,3965.8,3965.1,0.8327]
[1734396150501,0.2331536,3965.7,3965.1,0.8327]
[1734396150650,0.37304781,3966.3,3965.1,0.8327]
[1734396150851,0.60629566,3966.2,3965.1,0.8327]
[1734396151104,0.60629566,3966.1,3965.1,0.8327]
[1734396151262,0.23324785,3966.0,3965.1,0.8327]
[1734396151463,1.41474061,3966.4,3965.1,0.8327]
[1734396151464,0.23324785,3965.9,3965.1,0.8327]
[1734396151686,0.23324785,3965.8,3965.1,0.8327]
[1734396151884,0.23324785,3965.7,3965.1,0.8327]
[1734396152081,0.23324785,3965.6,3965.1,0.8327]
[1734396152405,1.0416928,3966.3,3965.1,0.8327]
[1734396152406,0.23324785,3965.5,3965.1,0.8327]
[1734396152697,0.37304781,3966.2,3965.1,0.8327]
[1734396152996,0.60633035,3966.1,3965.1,0.8327]
[1734396153211,0.23328254,3966.0,3965.1,0.8327]
[1734396153355,0.23328254,3966.0,3964.6,1.0450814]
[1734396153356,0.23328254,3965.9,3965.2,0.02521703]
[1734396153555,0.37304781,3966.4,3965.2,0.8327]
[1734396153790,0.23339185,3966.3,3965.4,0.8327]
[1734396154059,0.23339185,3966.2,3965.5,0.8327]
[1734396154314,0.37304781,3966.9,3965.5,0.8327]
[1734396154469,0.6064604,3966.8,3965.5,0.8327]
[1734396154800,0.6064604,3966.7,3965.5,0.8327]
[1734396154954,0.6064604,3966.6,3965.5,0.8327]
[1734396155154,0.6069674,3966.5,3965.6,0.8327]
[1734396155401,0.233449,3966.4,3965.6,0.8327]
[1734396155551,0.233449,3966.3,3965.6,0.8327]
[1734396155750,0.233449,3966.2,3965.6,0.8327]
[1734396155986,0.233449,3966.1,3965.6,0.8327]
[1734396156181,0.3735184,3966.5,3965.7,0.12647032]
[1734396156392,0.60696789,3966.4,3965.7,0.12647032]
[1734396156605,0.23344949,3966.3,3965.7,0.12647032]
[1734396156814,0.23344949,3966.2,3965.8,0.8327]
[1734396157109,0.23344949,3966.1,3965.8,0.8327]
[1734396157269,0.3735184,3966.6,3965.8,0.8327]
[1734396157468,0.6069503,3966.5,3965.8,0.8327]
[1734396157683,1.0416928,3967.0,3965.8,0.8327]
[1734396157684,0.2334319,3966.4,3965.8,0.8327]
[1734396157888,0.3735184,3966.9,3965.8,0.8327]
[1734396157889,0.2334319,3966.3,3965.8,0.8327]
[1734396158088,0.2334319,3966.2,3965.8,0.8327]
[1734396158273,0.2334319,3966.1,3964.9,1.0450814]
[1734396158474,0.2334319,3966.0,3965.0,0.8327]
[1734396158690,0.2334319,3965.9,3965.0,0.8327]
[1734396158925,0.2334319,3965.8,3965.0,0.8327]
[1734396159080,0.2334319,3965.7,3965.0,0.8327]
[1734396159283,0.2334319,3965.6,3965.0,0.8327]
[1734396159498,0.23337749,3965.5,3965.0,0.8327]
[1734396159706,0.3735184,3965.9,3965.0,0.8327]
[1734396159903,0.23337827,3965.8,3965.0,0.8327]
[1734396160089,0.60689667,3965.7,3965.0,0.8327]
[1734396160313,0.60689667,3965.6,3965.0,0.8327]
[1734396160512,0.7642871,3965.5,3965.0,0.8327]
[1734396160715,0.60689667,3965.4,3965.0,0.8327]
[1734396160950,0.60689667,3965.3,3965.0,0.8327]
[1734396161113,0.23337827,3965.2,3965.0,0.8327]
[1734396161298,0.23337827,3965.1,3965.0,0.8327]
[1734396161703,0.60666279,3965.1,3964.7,0.8327]
[1734396161949,0.60666279,3965.0,3964.7,0.8327]
[1734396162147,0.60666279,3964.9,3964.7,0.8327]
[1734396162347,0.60666279,3964.8,3964.7,0.8327]
[1734396162656,0.60666279,3964.8,3963.8,0.8327]
[1734396162803,0.60666279,3964.7,3963.8,1.21456409]
[1734396163004,0.60666279,3964.6,3963.8,1.21456409]
[1734396163209,0.23333184,3964.5,3963.9,0.8327]
[1734396163420,0.23333184,3964.4,3963.9,1.16480012]
[1734396163620,0.37298789,3965.0,3964.0,1.19002303]
[1734396163862,0.60611116,3964.9,3964.1,0.15718871]
[1734396164154,0.60611116,3964.8,3964.1,0.15718871]
[1734396164455,0.23312327,3964.7,3964.1,0.15718871]
[1734396164603,0.23312327,3964.6,3964.1,0.15718871]
[1734396164807,0.23312327,3964.5,3964.1,0.15718871]
[1734396165118,0.37290411,3965.0,3964.1,0.15718871]
[1734396165340,0.23307202,3964.9,3964.0,1.16480012]
[1734396165542,0.60598726,3964.8,3964.1,0.78092266]
[1734396165871,0.23307202,3964.7,3964.1,0.7557]
[1734396166170,0.23307202,3964.6,3964.1,0.7557]
[1734396166337,0.37291524,3965.2,3964.1,0.7557]
[1734396166538,0.60586712,3965.1,3964.1,0.7557]
[1734396166875,0.15741,3965.5,3964.1,0.7557]
[1734396166876,0.60586712,3965.0,3964.1,0.7557]
[1734396167045,0.54586338,3965.5,3964.1,0.7557]
[1734396167046,0.60586712,3964.9,3964.1,0.7557]
[1734396167227,0.23295188,3964.8,3964.1,0.7557]
[1734396167426,0.23295188,3964.7,3964.1,0.7557]
[1734396167639,0.38845338,3965.5,3964.1,0.7557]
[1734396167640,0.23295188,3964.6,3964.1,0.7557]
[1734396167844,0.54586338,3965.5,3964.1,0.7557]
[1734396167845,0.23295188,3964.5,3964.1,0.7557]
[1734396168031,0.37270893,3965.0,3964.1,0.7557]
[1734396168230,0.7821,3965.1,3964.1,0.7557]
[1734396168504,0.23289968,3964.9,3964.1,0.7557]
[1734396168625,0.60553918,3964.8,3964.1,0.7557]
[1734396168830,0.60553918,3964.7,3964.1,0.7557]
[1734396169157,0.7821,3965.1,3964.1,0.7557]
[1734396169158,0.23289968,3964.6,3964.1,0.7557]
[1734396169357,0.3726395,3964.9,3964.1,0.7557]
[1734396169562,0.2328312,3964.8,3964.1,0.7557]
[1734396169759,0.7821,3965.1,3964.1,0.7557]
[1734396170071,0.7927,3965.6,3964.1,0.7557]
[1734396170276,0.86240064,3965.5,3964.1,0.7557]
[1734396170482,1.0416928,3966.0,3964.3,0.8239]
[1734396170632,1.0416928,3966.0,3964.0,0.55]
[1734396170633,0.60541039,3965.4,3964.4,0.33210012]
[1734396170833,0.23285015,3965.3,3964.5,0.8239]
[1734396171039,0.37256024,3965.8,3964.5,0.8239]
[1734396171278,0.60547377,3965.7,3964.5,0.8239]
[1734396171434,0.54549474,3966.2,3964.5,0.8239]
[1734396171435,0.60547377,3965.6,3964.5,0.8239]
[1734396171636,0.60547377,3965.5,3964.5,0.8239]
[1734396171861,0.60547377,3965.4,3964.5,0.8239]
[1734396172140,0.60547377,3965.3,3964.5,0.8239]
[1734396172361,0.23291353,3965.2,3964.5,0.8239]
[1734396172550,0.23291353,3965.1,3964.5,0.8239]
[1734396172750,0.23291353,3965.0,3964.5,0.8239]
[1734396172953,0.37256024,3965.4,3964.5,0.8239]
[1734396173167,0.60547719,3965.3,3964.5,0.8239]
[1734396173336,0.23291695,3965.2,3964.5,0.8239]
[1734396173543,0.7927,3965.8,3964.5,0.8239]
[1734396173544,0.23291695,3965.1,3964.5,0.8239]
[1734396173755,0.23291695,3965.0,3964.5,0.8239]
[1734396173950,0.37256024,3965.4,3964.5,0.8239]
[1734396174282,0.60549533,3965.3,3964.5,0.8239]
[1734396174490,0.23293509,3965.2,3964.5,0.8239]
[1734396174703,0.23293509,3965.1,3964.5,0.8239]
[1734396174863,0.23293509,3965.0,3964.5,0.8239]
[1734396175191,0.7927,3965.8,3964.5,0.8239]
[1734396175397,0.23294868,3964.9,3964.5,0.8239]
[1734396175541,1.1809478,3965.8,3964.5,0.8239]
[1734396175542,0.23294868,3964.8,3964.5,0.8239]
[1734396175746,0.23294868,3964.7,3964.5,0.8239]
[1734396175947,0.37271789,3965.4,3964.5,0.8239]
[1734396176196,0.60568988,3965.3,3964.5,0.8239]
[1734396176504,0.60568988,3965.2,3964.5,0.8239]
[1734396176687,0.60568988,3965.1,3964.5,0.8239]
[1734396176896,0.60568988,3965.0,3963.6,0.8239]
[1734396177189,0.60568988,3964.9,3963.6,0.8239]
[1734396177489,0.60568988,3964.8,3963.6,0.8239]
[1734396177673,0.60568988,3964.7,3963.6,0.8239]
[1734396177874,0.7927,3965.1,3963.6,0.8239]
[1734396177875,0.60568988,3964.6,3963.6,0.8239]
[1734396178080,0.23297199,3964.5,3963.6,0.8239]
[1734396178394,0.23297199,3964.4,3963.6,0.8239]
[1734396178698,0.7927,3965.1,3963.6,0.8239]
[1734396178864,0.6055503,3965.0,3963.6,0.8239]
[1734396179197,0.6055503,3964.9,3963.6,0.8239]
[1734396179352,0.6055503,3964.8,3963.6,0.8239]
[1734396179545,0.6055503,3964.7,3963.6,0.8239]
[1734396179778,0.6055503,3964.6,3963.6,0.8239]
[1734396180090,0.6055503,3964.5,3963.6,0.8239]
[1734396180316,0.8056,3964.3,3963.6,0.8239]
[1734396180529,0.6055503,3964.2,3963.5,0.2488]
[1734396180822,0.6055503,3964.1,3963.5,0.2488]
[1734396181027,0.8056,3964.3,3963.5,0.2488]
[1734396181178,0.60535889,3964.2,3963.5,0.2488]
[1734396181536,0.60535889,3964.1,3963.5,0.2488]
[1734396181825,0.60535889,3964.0,3963.5,0.2488]
[1734396181976,0.60535889,3963.9,3963.5,0.2488]
[1734396182177,0.60535889,3963.8,3963.5,0.2488]
[1734396182374,0.23283034,3963.7,3963.5,0.2488]
[1734396182572,1.03843034,3963.6,3963.5,0.2488]
[1734396182784,1.41095889,3963.6,3963.5,0.2488]
[1734396182993,7.76317669,3963.6,3963.5,0.2488]
[1734396183213,7.27148389,3963.6,3963.5,0.2488]
[1734396183431,9.91948389,3963.6,3963.5,0.2488]
[1734396183575,9.91948389,3963.6,3960.4,1.16866523]
[1734396183576,0.55,3963.5,3960.4,0.7694]
[1734396183776,2.14021989,3962.8,3960.5,0.18144814]
[1734396184077,0.55,3962.5,3960.4,0.7694]
[1734396184281,1.03778329,3962.4,3960.4,0.7694]
[1734396184477,0.8056,3962.4,3960.4,0.7694]
[1734396184709,0.23219462,3962.3,3960.4,0.89570402]
[1734396184940,0.23182516,3962.2,3960.4,0.89570402]
[1734396185077,0.23182516,3962.1,3960.4,0.89570402]
[1734396185277,0.23182516,3962.0,3960.4,0.89570402]
[1734396185523,0.23182516,3961.9,3960.4,0.89570402]
[1734396185706,0.23182516,3961.8,3960.4,0.89570402]
[1734396185877,0.8056,3962.4,3960.4,0.89570402]
[1734396186079,0.8056,3962.4,3960.6,0.7694]
[1734396186080,0.23160896,3962.3,3960.6,0.7694]
[1734396186279,0.23160896,3962.3,3960.8,0.7694]
[1734396186638,0.23160896,3962.3,3961.0,0.7694]
[1734396186835,0.8056,3962.7,3961.0,0.7694]
[1734396186836,0.8056,3962.7,3961.1,0.41015001]
[1734396187144,0.23150218,3962.6,3961.1,0.41015001]
[1734396187280,0.8056,3962.7,3961.1,0.41015001]
[1734396187281,0.23153901,3962.5,3961.1,0.41015001]
[1734396187480,0.23153901,3962.4,3961.1,0.41015001]
[1734396187689,0.23153901,3962.3,3961.0,0.7694]
[1734396187902,0.8056,3962.7,3961.0,0.7694]
[1734396188178,0.23141967,3962.6,3961.0,0.7694]
[1734396188378,0.23141967,3962.5,3961.0,0.7694]
[1734396188607,0.23141967,3962.4,3961.0,0.7694]
[1734396188826,0.23141967,3962.3,3961.0,0.7694]
[1734396189060,0.23141967,3962.2,3961.0,0.7694]
[1734396189195,0.8056,3962.7,3961.0,0.7694]
[1734396189196,0.8056,3962.7,3961.1,0.37694]
[1734396189542,0.7527,3963.1,3961.2,0.84973834]
[1734396189876,0.7527,3963.1,3961.2,0.8245]
[1734396190344,0.7527,3962.9,3961.2,0.8245]
[1734396190632,0.51176932,3963.4,3959.9,0.8245]
[1734396190633,0.55,3962.5,3959.9,0.8245]
[1734396190793,0.55,3962.3,3959.9,0.8245]
[1734396191122,0.2312998,3962.2,3959.9,0.8245]
[1734396191330,0.2312998,3962.1,3959.9,0.8245]
[1734396191486,0.2312998,3962.0,3959.9,0.8245]
[1734396191681,0.2312998,3961.9,3959.9,0.8245]
[1734396191886,0.2312998,3961.8,3959.9,0.8245]
[1734396192129,0.2312998,3961.7,3959.9,0.8245]
[1734396192331,0.2312998,3961.6,3959.9,0.8245]
[1734396192496,0.2312998,3961.5,3959.9,0.8245]
[1734396192702,0.7527,3962.2,3960.0,0.8245]
[1734396192886,0.23103245,3962.1,3960.2,0.8245]
[1734396193080,0.23103245,3962.0,3960.2,0.8245]
[1734396193324,0.23103245,3961.9,3960.2,0.8245]
[1734396193492,0.7527,3962.2,3960.2,0.8245]
[1734396193493,0.23103245,3961.8,3960.2,0.8245]
[1734396193685,0.7816,3961.6,3960.2,0.8245]
[1734396194009,0.23103245,3961.5,3960.2,0.8245]
[1734396194178,0.7816,3961.6,3960.2,0.8245]
[1734396194179,0.2310263,3961.4,3960.2,0.8245]
[1734396194378,0.7816,3961.6,3960.2,0.8245]
[1734396194927,0.23101772,3961.5,3960.2,0.8245]
[1734396195095,0.23101772,3961.4,3960.2,0.8245]
[1734396195300,0.23091873,3961.3,3960.2,0.8245]
[1734396195513,0.23091873,3961.2,3960.2,0.8245]
[1734396195713,0.23091873,3961.1,3960.2,0.8245]
[1734396195914,0.7816,3960.9,3959.9,0.7811]
[1734396196100,0.23091873,3960.8,3959.9,0.7811]
[1734396196299,0.23091873,3960.7,3957.7,0.7811]
[1734396196502,0.23091873,3960.6,3957.9,0.7811]
[1734396196702,0.23091873,3960.5,3957.9,0.7811]
[1734396197029,0.7816,3960.9,3957.9,0.80635498]
[1734396197030,0.23091873,3960.4,3957.9,0.80635498]
[1734396197227,0.23091873,3960.3,3957.9,0.80635498]
[1734396197529,0.23051566,3960.2,3957.9,0.7811]
[1734396197845,0.7816,3960.9,3957.9,0.7811]
[1734396197846,0.7816,3960.9,3958.4,0.7811]
[1734396198068,0.23050734,3960.8,3958.4,0.7811]
[1734396198265,0.23050734,3960.7,3958.4,0.7811]
[1734396198473,0.23050734,3960.6,3958.4,0.7811]
[1734396198768,0.23050734,3960.5,3958.7,3.0]
[1734396198967,0.7816,3960.9,3958.9,0.7811]
[1734396198968,0.23050734,3960.4,3958.9,0.7811]
[1734396199127,0.23050734,3960.3,3958.9,0.7811]
[1734396199329,0.23027677,3960.2,3958.9,0.7811]
[1734396199667,0.7816,3960.9,3958.9,0.7811]
[1734396199869,0.23030276,3960.8,3959.1,0.7811]
[1734396200082,0.23030276,3960.7,3959.1,0.7811]
[1734396200384,0.23030276,3960.6,3959.1,0.7811]
[1734396200526,0.23030276,3960.5,3959.1,0.7811]
[1734396200727,0.23030276,3960.4,3959.1,0.7811]
[1734396200950,0.23030276,3960.3,3959.1,0.7811]
[1734396201153,0.23030276,3960.2,3959.1,0.7811]
[1734396201366,0.7816,3961.2,3959.4,0.7811]
[1734396201575,0.15760597,3962.0,3959.2,0.35735382]
[1734396201576,0.7816,3962.0,3959.6,0.7811]
[1734396201783,0.98335605,3961.9,3959.8,0.7811]
[1734396202076,0.7816,3961.7,3959.8,0.7811]
[1734396202227,0.59923259,3961.6,3959.8,0.7811]
[1734396202431,0.59923259,3961.5,3959.8,0.7811]
[1734396202622,0.7816,3961.3,3959.8,0.7811]
[1734396202850,0.59923259,3961.2,3959.8,0.7811]
[1734396203065,0.59923259,3961.1,3959.8,0.7811]
[1734396203228,0.59923259,3961.0,3959.8,0.7811]
[1734396203425,0.59923259,3960.9,3959.8,0.7811]
[1734396203678,0.59923259,3960.8,3959.8,0.7811]
[1734396203975,0.7816,3960.6,3959.2,0.7811]
[1734396204134,0.59923259,3960.5,3959.2,0.7811]
[1734396204485,0.59990988,3960.4,3959.2,0.7811]
[1734396204769,0.59990988,3960.3,3959.2,0.7811]
[1734396204953,0.59990988,3960.2,3959.2,0.7811]
[1734396205274,1.32376253,3960.6,3959.2,0.7811]
[1734396205275,0.59990988,3960.1,3959.2,0.7811]
[1734396205569,0.59990988,3960.0,3959.2,0.7811]
[1734396205865,0.59990988,3959.9,3959.2,0.7811]
[1734396206068,0.59990988,3959.8,3959.2,0.7811]
[1734396206276,0.23073457,3959.7,3959.2,0.7811]
[1734396206487,0.23073457,3959.6,3959.2,0.7811]
[1734396206781,0.23073457,3959.5,3959.2,0.7811]
[1734396206932,0.23073457,3959.4,3959.2,0.7811]
[1734396207136,0.37002438,3959.9,3959.2,0.7811]
[1734396207334,0.60129531,3959.8,3959.2,0.7811]
[1734396207570,0.23127093,3959.7,3959.2,0.7811]
[1734396207868,0.23127093,3959.6,3959.2,0.7811]
[1734396208074,0.37039187,3960.1,3959.3,0.80635274]
[1734396208380,0.231505,3960.0,3959.5,0.7811]
[1734396208584,0.384558,3961.8,3959.4,3.55]
[1734396208585,0.15756607,3960.8,3959.7,0.7811]
[1734396208872,0.76032069,3960.7,3959.7,0.7811]
[1734396209080,0.60275462,3960.6,3959.7,0.7811]
[1734396209283,0.60275462,3960.5,3959.7,0.7811]
[1734396209434,0.60275462,3960.4,3959.7,0.7811]
[1734396209637,0.60275462,3960.3,3959.9,0.7811]
[1734396209974,0.2318287,3960.2,3959.9,0.7811]
[1734396210138,0.2318287,3960.1,3959.9,0.7811]
[1734396210338,0.2318287,3960.0,3959.9,0.7811]
[1734396210556,0.7816,3961.9,3959.9,0.7811]
[1734396210736,0.38695965,3961.0,3959.9,0.7811]
[1734396210941,0.38695965,3960.7,3959.9,0.7811]
[1734396211143,0.38695965,3960.5,3959.9,0.7811]
[1734396211477,0.60374681,3960.4,3959.9,0.7811]
[1734396211777,0.60374681,3960.3,3959.9,0.7811]
[1734396211983,0.60374681,3960.2,3959.0,0.12380203]
[1734396212132,0.99070646,3960.1,3959.1,0.7811]
[1734396212332,0.38695965,3959.8,3959.1,0.7811]
[1734396212648,0.60374681,3959.7,3959.1,0.7811]
[1734396212966,0.60374681,3959.6,3959.1,0.7811]
[1734396213190,0.60374681,3959.5,3959.1,0.7811]
[1734396213382,0.60374681,3959.4,3959.1,0.7811]
[1734396213534,0.60374681,3959.3,3959.1,0.7811]
[1734396213730,0.60374681,3959.2,3959.1,0.7811]
[1734396214198,0.44624681,3959.2,3959.1,6.678085]
[1734396214348,0.7816,3961.1,3959.3,0.7811]
[1734396214571,0.7816,3962.0,3959.5,0.7811]
[1734396214883,0.7816,3962.0,3959.8,0.7811]
[1734396216982,0.7816,3962.0,3960.0,0.7811]
[1734396217567,0.38825904,3961.0,3960.1,0.80634633]
[1734396217887,3.0,3962.5,3960.1,0.80634633]
[1734396217888,0.38825904,3961.3,3960.4,0.7811]
[1734396218091,0.38825904,3961.7,3960.6,0.7811]
[1734396218295,0.38825904,3961.8,3960.8,0.7811]
[1734396218586,0.7816,3962.5,3960.8,0.7811]
[1734396221091,0.7816,3962.5,3960.6,0.7811]
[1734396221290,0.7816,3962.9,3960.7,0.7811]
[1734396221492,0.7816,3962.9,3960.9,0.7811]
[1734396222262,0.55,3962.8,3960.9,0.7811]
[1734396223698,0.7816,3962.9,3960.9,0.7811]
[1734396224392,0.92242284,3962.8,3960.9,0.7811]
[1734396224701,0.37242284,3962.7,3960.9,0.7811]
[1734396224987,0.37242284,3962.6,3960.9,0.7811]
[1734396225192,0.37242284,3962.5,3960.9,0.7811]
[1734396225396,0.37242284,3962.4,3960.9,0.7811]
[1734396225597,0.55,3962.8,3960.9,0.7811]
[1734396225598,0.37242284,3962.3,3960.9,0.7811]
[1734396225912,0.37242284,3962.2,3960.9,0.7811]
[1734396226051,0.37242284,3962.1,3960.9,0.7811]
[1734396226254,0.37242284,3962.7,3960.9,0.7811]
[1734396226451,0.60506553,3962.6,3960.9,0.7811]
[1734396226696,0.60506553,3962.5,3960.9,0.7811]
[1734396226904,0.60506553,3962.4,3960.9,0.7811]
[1734396227202,0.60506553,3962.3,3960.9,0.7811]
[1734396227365,0.60506553,3962.2,3960.9,0.7811]
[1734396227566,0.60506553,3962.1,3960.9,0.7811]
[1734396227786,0.23264269,3962.0,3960.9,0.7811]
[1734396227992,0.55,3962.8,3960.9,0.7811]
[1734396227993,0.60506553,3961.9,3960.9,0.7811]
[1734396228198,0.23264269,3961.8,3960.9,0.7811]
[1734396228399,0.23264269,3961.7,3960.9,0.7811]
[1734396228708,0.23264269,3961.6,3960.9,0.7811]
[1734396228911,1.04034121,3962.6,3960.9,0.7811]
[1734396228912,0.23264269,3961.5,3960.9,0.7811]
[1734396229274,0.23264269,3961.4,3960.9,0.7811]
[1734396229427,0.23264269,3961.3,3960.9,0.7811]
[1734396229629,0.23264269,3961.2,3960.9,0.7811]
[1734396229829,0.23264269,3961.1,3960.9,0.7811]
[1734396230132,0.37242284,3961.9,3960.9,0.7811]
[1734396230282,1.81414121,3962.4,3960.9,0.7811]
[1734396230283,0.60501078,3961.8,3960.9,0.7811]
[1734396230483,0.60501078,3961.7,3960.9,0.7811]
[1734396230776,1.04034121,3962.3,3960.9,0.7811]
[1734396230777,0.60501078,3961.6,3960.9,0.7811]
[1734396230983,0.60501078,3961.5,3959.7,0.7541]
[1734396231233,0.60501078,3961.4,3959.8,0.93401814]
[1734396231390,0.7738,3961.6,3959.8,0.7541]
[1734396231391,0.60501078,3961.3,3959.8,0.7541]
[1734396231579,0.60501078,3961.2,3959.8,0.7541]
[1734396231780,0.23258794,3961.1,3959.8,0.7541]
[1734396232138,0.60501078,3961.0,3959.8,0.7541]
[1734396232296,0.60501078,3960.9,3959.8,0.7541]
[1734396232627,0.23258794,3960.8,3959.8,0.7541]
[1734396232784,1.04034121,3961.4,3959.8,0.7541]
[1734396232785,0.23258794,3960.7,3959.8,0.7541]
[1734396233000,0.23258794,3960.6,3959.8,0.7541]
[1734396233198,0.23258794,3960.5,3959.8,0.7541]
[1734396233435,1.04034121,3961.4,3959.8,0.7541]
[1734396233436,0.7738,3961.1,3959.8,0.7541]
[1734396233633,3.79765622,3961.0,3959.8,0.7541]
[1734396233857,0.7738,3960.8,3958.6,0.7541]
[1734396234017,0.55,3960.5,3958.6,0.7541]
[1734396234220,0.55,3960.2,3958.6,0.7541]
[1734396234440,0.7738,3959.9,3957.9,0.7541]
[1734396234638,4.15448183,3959.8,3957.9,0.7541]
[1734396234801,0.7738,3959.6,3957.9,0.7541]
[1734396235000,0.60448183,3959.5,3957.9,0.7541]
[1734396235337,0.60448183,3959.4,3957.9,0.7541]
[1734396235556,0.23249301,3959.3,3957.9,0.7541]
[1734396235725,0.23249301,3959.2,3957.9,0.7541]
[1734396236055,0.23249301,3959.1,3957.9,0.7541]
[1734396236363,0.23249301,3959.0,3957.9,0.7541]
[1734396236658,0.23249301,3958.9,3957.9,0.7541]
[1734396236955,0.55,3959.5,3957.9,0.7541]